[Event "Early-Titled-Tuesday-Blitz-September-05-2023"]
[Site "Chess.com"]
[Date "2023.09.05"]
[Round "9"]
[White "rdarruda"]
[Black "secretsuperstar7"]
[Result "1-0"]
[WhiteElo "2563"]
[BlackElo "2385"]
[TimeControl "180+1"]
[EndTime "9:42:23 PDT"]
[Termination "rdarruda won by resignation"]

1. d4 {[%clk 0:02:52.9]} 1... d5 {[%clk 0:02:57]} 2. Nf3 {[%clk 0:02:52]} 2...
Nf6 {[%clk 0:02:54.2]} 3. c4 {[%clk 0:02:51.8]} 3... e6 {[%clk 0:02:53.8]} 4. e3
{[%clk 0:02:51.6]} 4... a6 {[%clk 0:02:50.7]} 5. b3 {[%clk 0:02:47]} 5... b6
{[%clk 0:02:47]} 6. Nc3 {[%clk 0:02:46.1]} 6... Bb7 {[%clk 0:02:44.5]} 7. Bd3
{[%clk 0:02:45.9]} 7... Nbd7 {[%clk 0:02:42.1]} 8. O-O {[%clk 0:02:45]} 8... c5
{[%clk 0:02:40.6]} 9. Bb2 {[%clk 0:02:42.2]} 9... Bd6 {[%clk 0:02:37.8]} 10. Qe2
{[%clk 0:02:41.4]} 10... O-O {[%clk 0:02:36.6]} 11. e4 {[%clk 0:02:32.9]} 11...
dxe4 {[%clk 0:02:19.8]} 12. Nxe4 {[%clk 0:02:33.8]} 12... Nxe4 {[%clk
0:02:19.3]} 13. Bxe4 {[%clk 0:02:32]} 13... Bxe4 {[%clk 0:02:19.1]} 14. Qxe4
{[%clk 0:02:32.9]} 14... Nf6 {[%clk 0:02:18.4]} 15. Qh4 {[%clk 0:02:31.7]} 15...
cxd4 {[%clk 0:02:10.4]} 16. Bxd4 {[%clk 0:02:27.6]} 16... Be7 {[%clk 0:02:10.2]}
17. Rad1 {[%clk 0:02:21.7]} 17... Qc7 {[%clk 0:02:06.4]} 18. Rfe1 {[%clk
0:02:16.9]} 18... Rad8 {[%clk 0:02:02.2]} 19. h3 {[%clk 0:02:12.4]} 19... h6
{[%clk 0:01:49.1]} 20. Be5 {[%clk 0:02:11.9]} 20... Qb7 {[%clk 0:01:44.3]} 21.
Rd4 {[%clk 0:01:54.9]} 21... Rfe8 {[%clk 0:01:33.1]} 22. Red1 {[%clk 0:01:52.8]}
22... Nd7 {[%clk 0:01:27.7]} 23. Qg3 {[%clk 0:01:42.5]} 23... Nxe5 {[%clk
0:01:27.3]} 24. Qxe5 {[%clk 0:01:39.2]} 24... Rxd4 {[%clk 0:01:21.6]} 25. Qxd4
{[%clk 0:01:38.9]} 25... Rd8 {[%clk 0:01:14.6]} 26. Qa1 {[%clk 0:01:38.5]} 26...
Qc8 {[%clk 0:01:10.6]} 27. g3 {[%clk 0:01:32.8]} 27... Bf6 {[%clk 0:01:09.4]}
28. Qb1 {[%clk 0:01:32.3]} 28... Qa8 {[%clk 0:01:06.3]} 29. Kg2 {[%clk
0:01:30.8]} 29... e5 {[%clk 0:01:03.9]} 30. Rxd8+ {[%clk 0:01:29.9]} 30... Bxd8
{[%clk 0:01:00.7]} 31. Qd1 {[%clk 0:01:11.7]} 31... e4 {[%clk 0:00:58.1]} 32.
Nd4 {[%clk 0:01:11.5]} 32... Bf6 {[%clk 0:00:47.7]} 33. Nf5 {[%clk 0:01:05.4]}
33... Qc8 {[%clk 0:00:24.3]} 34. Qd5 {[%clk 0:01:02.1]} 34... Qe8 {[%clk
0:00:20.8]} 35. Nd6 {[%clk 0:00:59]} 35... Qd8 {[%clk 0:00:13.3]} 36. Nxe4
{[%clk 0:00:53.8]} 36... Qe7 {[%clk 0:00:13]} 37. Nd6 {[%clk 0:00:46.5]} 37...
Qd7 {[%clk 0:00:09.4]} 38. Ne4 {[%clk 0:00:37.5]} 38... Qe8 {[%clk 0:00:08.6]}
39. Nxf6+ {[%clk 0:00:36.3]} 39... gxf6 {[%clk 0:00:09.5]} 40. b4 {[%clk
0:00:27.5]} 40... Kg7 {[%clk 0:00:08.8]} 41. c5 {[%clk 0:00:27.9]} 41... b5
{[%clk 0:00:08.2]} 42. c6 {[%clk 0:00:27.9]} 42... Qe1 {[%clk 0:00:07.3]} 43. c7
{[%clk 0:00:27.2]} 43... Qc3 {[%clk 0:00:07.3]} 44. Qb7 {[%clk 0:00:26.8]} 1-0

[Event "Early-Titled-Tuesday-Blitz-September-05-2023"]
[Site "Chess.com"]
[Date "2023.09.05"]
[Round "9"]
[White "frederiksvane"]
[Black "blitzking1729"]
[Result "1-0"]
[WhiteElo "2933"]
[BlackElo "2770"]
[TimeControl "180+1"]
[EndTime "9:42:29 PDT"]
[Termination "frederiksvane won by resignation"]

1. c4 {[%clk 0:03:00.9]} 1... e5 {[%clk 0:02:53.1]} 2. g3 {[%clk 0:03:00.9]}
2... d6 {[%clk 0:02:50.8]} 3. Bg2 {[%clk 0:03:01.1]} 3... Nc6 {[%clk 0:02:50.3]}
4. Nc3 {[%clk 0:02:58.3]} 4... f5 {[%clk 0:02:49.8]} 5. d3 {[%clk 0:02:57]} 5...
Nf6 {[%clk 0:02:47.7]} 6. Rb1 {[%clk 0:02:57.4]} 6... a5 {[%clk 0:02:47]} 7. a3
{[%clk 0:02:55.9]} 7... g6 {[%clk 0:02:45.9]} 8. b4 {[%clk 0:02:55.4]} 8... axb4
{[%clk 0:02:45]} 9. axb4 {[%clk 0:02:56.3]} 9... Bg7 {[%clk 0:02:45.7]} 10. b5
{[%clk 0:02:56.7]} 10... Ne7 {[%clk 0:02:45.1]} 11. Nf3 {[%clk 0:02:57.4]} 11...
O-O {[%clk 0:02:44.9]} 12. O-O {[%clk 0:02:57.9]} 12... h6 {[%clk 0:02:45.4]}
13. e4 {[%clk 0:02:34.7]} 13... g5 {[%clk 0:02:39.1]} 14. Re1 {[%clk 0:02:16.7]}
14... f4 {[%clk 0:02:35.3]} 15. d4 {[%clk 0:02:12.1]} 15... Ng6 {[%clk
0:02:35.1]} 16. dxe5 {[%clk 0:02:10.9]} 16... dxe5 {[%clk 0:02:33.9]} 17. Qxd8
{[%clk 0:02:10.4]} 17... Rxd8 {[%clk 0:02:34.6]} 18. Nd5 {[%clk 0:02:11.3]}
18... Nxd5 {[%clk 0:02:34]} 19. cxd5 {[%clk 0:02:12.2]} 19... Bf8 {[%clk
0:02:29.5]} 20. Bb2 {[%clk 0:02:08]} 20... Bd6 {[%clk 0:02:29]} 21. h3 {[%clk
0:02:01.5]} 21... Bd7 {[%clk 0:02:26]} 22. b6 {[%clk 0:01:50.8]} 22... cxb6
{[%clk 0:02:22.9]} 23. Bc3 {[%clk 0:01:50.9]} 23... Rdc8 {[%clk 0:02:17.2]} 24.
Rxb6 {[%clk 0:01:46.4]} 24... Ra6 {[%clk 0:02:09.1]} 25. Rxb7 {[%clk 0:01:41.8]}
25... Bxh3 {[%clk 0:02:01.8]} 26. Bxh3 {[%clk 0:01:17.9]} 26... Rxc3 {[%clk
0:02:00.7]} 27. Be6+ {[%clk 0:01:18.5]} 27... Kh8 {[%clk 0:01:58.5]} 28. Kg2
{[%clk 0:01:18.5]} 28... fxg3 {[%clk 0:01:51.1]} 29. Kxg3 {[%clk 0:00:49.3]}
29... Raa3 {[%clk 0:01:36.3]} 30. Re3 {[%clk 0:00:39.3]} 30... Rxe3 {[%clk
0:01:36.1]} 31. fxe3 {[%clk 0:00:40.2]} 31... Rxe3 {[%clk 0:01:36.3]} 32. Kg4
{[%clk 0:00:35.2]} 32... Nf4 {[%clk 0:01:19.6]} 33. Rd7 {[%clk 0:00:32.2]} 33...
h5+ {[%clk 0:00:32.6]} 34. Kxg5 {[%clk 0:00:28]} 34... Nxe6+ {[%clk 0:00:27.2]}
35. dxe6 {[%clk 0:00:28]} 35... Rxf3 {[%clk 0:00:27.5]} 36. Rxd6 {[%clk
0:00:25.5]} 36... Kg7 {[%clk 0:00:26.7]} 37. Rd8 {[%clk 0:00:19.7]} 37... Rg3+
{[%clk 0:00:10.4]} 38. Kf5 {[%clk 0:00:19.9]} 38... Kh6 {[%clk 0:00:04.8]} 39.
e7 {[%clk 0:00:17]} 1-0

[Event "Early-Titled-Tuesday-Blitz-September-05-2023"]
[Site "Chess.com"]
[Date "2023.09.05"]
[Round "9"]
[White "Aygehovit1992"]
[Black "nss13"]
[Result "1-0"]
[WhiteElo "2697"]
[BlackElo "2534"]
[TimeControl "180+1"]
[EndTime "9:42:37 PDT"]
[Termination "Aygehovit1992 won by resignation"]

1. e4 {[%clk 0:02:57.1]} 1... c5 {[%clk 0:02:59.7]} 2. Nc3 {[%clk 0:02:55.2]}
2... Nc6 {[%clk 0:02:59.6]} 3. Bb5 {[%clk 0:02:54.9]} 3... Nd4 {[%clk
0:02:59.2]} 4. Nf3 {[%clk 0:02:55.5]} 4... e6 {[%clk 0:02:46.7]} 5. O-O {[%clk
0:02:54.9]} 5... a6 {[%clk 0:02:46.2]} 6. Bd3 {[%clk 0:02:54.8]} 6... Nxf3+
{[%clk 0:02:43.2]} 7. Qxf3 {[%clk 0:02:54.4]} 7... Bd6 {[%clk 0:02:43.5]} 8. Nd1
{[%clk 0:02:43.8]} 8... Qf6 {[%clk 0:02:11.8]} 9. Qh3 {[%clk 0:02:29]} 9... Qh6
{[%clk 0:02:00.1]} 10. Qxh6 {[%clk 0:02:26.6]} 10... Nxh6 {[%clk 0:02:01]} 11.
c3 {[%clk 0:02:25.6]} 11... Ng4 {[%clk 0:01:47.6]} 12. f4 {[%clk 0:02:23.7]}
12... b5 {[%clk 0:01:43.1]} 13. e5 {[%clk 0:02:20.8]} 13... c4 {[%clk
0:01:12.8]} 14. exd6 {[%clk 0:02:20.7]} 14... cxd3 {[%clk 0:01:12.2]} 15. Rf3
{[%clk 0:02:20.7]} 15... Bb7 {[%clk 0:01:05.5]} 16. Rxd3 {[%clk 0:02:20.5]}
16... Rc8 {[%clk 0:01:03]} 17. b3 {[%clk 0:02:19.3]} 17... f5 {[%clk 0:00:46.7]}
18. a4 {[%clk 0:02:17.8]} 18... Be4 {[%clk 0:00:42.5]} 19. Rd4 {[%clk
0:02:15.6]} 19... Bc2 {[%clk 0:00:42.6]} 20. Nf2 {[%clk 0:01:46.7]} 20... Nxf2
{[%clk 0:00:37.8]} 21. Kxf2 {[%clk 0:01:47.6]} 21... Bxb3 {[%clk 0:00:37.8]} 22.
axb5 {[%clk 0:01:48.1]} 22... axb5 {[%clk 0:00:38.5]} 23. Ra7 {[%clk 0:01:47.5]}
23... Bd5 {[%clk 0:00:32.5]} 24. Ba3 {[%clk 0:01:21.3]} 24... Bc6 {[%clk
0:00:30.2]} 25. c4 {[%clk 0:01:00.6]} 25... Kf7 {[%clk 0:00:16.9]} 26. cxb5
{[%clk 0:00:53.9]} 26... Bxb5 {[%clk 0:00:17.8]} 27. Rb4 {[%clk 0:00:54.4]}
27... Bc6 {[%clk 0:00:18.1]} 28. Bb2 {[%clk 0:00:45.8]} 28... Kg6 {[%clk
0:00:17.5]} 29. h3 {[%clk 0:00:42.6]} 29... h5 {[%clk 0:00:16.9]} 30. Be5 {[%clk
0:00:38.8]} 30... Ra8 {[%clk 0:00:16.7]} 31. Rc7 {[%clk 0:00:36.9]} 31... Rhb8
{[%clk 0:00:15.2]} 32. Rd4 {[%clk 0:00:37.2]} 32... Rb7 {[%clk 0:00:13.9]} 33.
Rd3 {[%clk 0:00:33.1]} 33... Raa7 {[%clk 0:00:09.3]} 34. Rg3+ {[%clk 0:00:31.3]}
34... Kh6 {[%clk 0:00:08]} 35. Bxg7+ {[%clk 0:00:31.1]} 35... Kh7 {[%clk
0:00:07.8]} 36. Be5 {[%clk 0:00:31.4]} 36... Ra2 {[%clk 0:00:06.6]} 37. Rg7+
{[%clk 0:00:28.3]} 37... Kh6 {[%clk 0:00:07.3]} 38. Rxb7 {[%clk 0:00:27.2]}
38... Bxb7 {[%clk 0:00:08.2]} 39. Rxd7 {[%clk 0:00:26.5]} 39... Bd5 {[%clk
0:00:05.6]} 40. Bc3 {[%clk 0:00:20.8]} 40... Ra6 {[%clk 0:00:04.1]} 41. Rd8
{[%clk 0:00:21.2]} 41... Kg6 {[%clk 0:00:03.9]} 42. d7 {[%clk 0:00:20.7]} 42...
Rd6 {[%clk 0:00:03.6]} 43. Rg8+ {[%clk 0:00:20.6]} 43... Kf7 {[%clk 0:00:03.6]}
44. d8=Q {[%clk 0:00:21.5]} 1-0

[Event "Early-Titled-Tuesday-Blitz-September-05-2023"]
[Site "Chess.com"]
[Date "2023.09.05"]
[Round "9"]
[White "Orest_Vovk"]
[Black "Herman-NY"]
[Result "0-1"]
[WhiteElo "2610"]
[BlackElo "2520"]
[TimeControl "180+1"]
[EndTime "9:42:38 PDT"]
[Termination "Herman-NY won on time"]

1. g4 {[%clk 0:02:49.4]} 1... d5 {[%clk 0:02:58.6]} 2. h3 {[%clk 0:02:49.1]}
2... h5 {[%clk 0:02:57.8]} 3. g5 {[%clk 0:02:48.9]} 3... h4 {[%clk 0:02:58.4]}
4. Bg2 {[%clk 0:02:49.4]} 4... c6 {[%clk 0:02:58.5]} 5. d4 {[%clk 0:02:48.7]}
5... Bf5 {[%clk 0:02:54.2]} 6. Nc3 {[%clk 0:02:46.8]} 6... e6 {[%clk 0:02:54.5]}
7. e4 {[%clk 0:02:43.2]} 7... Bg6 {[%clk 0:02:35.4]} 8. Nge2 {[%clk 0:02:38.8]}
8... Bd6 {[%clk 0:02:29.2]} 9. f4 {[%clk 0:02:30.4]} 9... Ne7 {[%clk 0:02:24.5]}
10. O-O {[%clk 0:02:27.6]} 10... dxe4 {[%clk 0:02:05.9]} 11. Nxe4 {[%clk
0:02:22.2]} 11... Bxe4 {[%clk 0:02:06.1]} 12. Bxe4 {[%clk 0:02:20.7]} 12... g6
{[%clk 0:02:04]} 13. c4 {[%clk 0:02:11.1]} 13... Nd7 {[%clk 0:01:50.1]} 14. Be3
{[%clk 0:02:06]} 14... Bc7 {[%clk 0:00:56.4]} 15. d5 {[%clk 0:02:03.7]} 15...
cxd5 {[%clk 0:00:31.3]} 16. cxd5 {[%clk 0:02:03.4]} 16... exd5 {[%clk 0:00:32]}
17. Bxd5 {[%clk 0:02:02.1]} 17... Bb6 {[%clk 0:00:31.5]} 18. Bxb6 {[%clk
0:01:53]} 18... Qxb6+ {[%clk 0:00:30.7]} 19. Kh1 {[%clk 0:01:49]} 19... O-O
{[%clk 0:00:23.2]} 20. Bf3 {[%clk 0:01:38.8]} 20... Rad8 {[%clk 0:00:20.2]} 21.
Qb3 {[%clk 0:01:34.7]} 21... Nf5 {[%clk 0:00:08.2]} 22. Qxb6 {[%clk 0:01:24.5]}
22... axb6 {[%clk 0:00:09.1]} 23. Bxb7 {[%clk 0:01:24.2]} 23... Nc5 {[%clk
0:00:08.7]} 24. Bf3 {[%clk 0:01:20.2]} 24... Rd2 {[%clk 0:00:08.8]} 25. b4
{[%clk 0:01:18.4]} 25... Nd3 {[%clk 0:00:07.7]} 26. a3 {[%clk 0:01:09]} 26...
Re8 {[%clk 0:00:06.7]} 27. Kg1 {[%clk 0:00:47.5]} 27... Rexe2 {[%clk 0:00:05.8]}
28. Bxe2 {[%clk 0:00:48.4]} 28... Rxe2 {[%clk 0:00:06.6]} 29. Rf3 {[%clk
0:00:48.9]} 29... Ne3 {[%clk 0:00:05.6]} 30. a4 {[%clk 0:00:41.8]} 30... Nxb4
{[%clk 0:00:03.4]} 31. Rb1 {[%clk 0:00:38]} 31... Nbd5 {[%clk 0:00:02.6]} 32.
Rb3 {[%clk 0:00:33.1]} 32... Kf8 {[%clk 0:00:02.7]} 33. Rf2 {[%clk 0:00:27.7]}
33... Re1+ {[%clk 0:00:02.4]} 34. Kh2 {[%clk 0:00:25.3]} 34... Ke7 {[%clk
0:00:03.1]} 35. Rf3 {[%clk 0:00:15.8]} 35... Ke6 {[%clk 0:00:03.2]} 36. Rf2
{[%clk 0:00:15.6]} 36... Kf5 {[%clk 0:00:03.4]} 37. Rb5 {[%clk 0:00:15.3]} 37...
Ke4 {[%clk 0:00:03.8]} 38. Rb3 {[%clk 0:00:11.7]} 38... Nf1+ {[%clk 0:00:03.9]}
39. Kg2 {[%clk 0:00:09.8]} 39... Nde3+ {[%clk 0:00:03.7]} 0-1

[Event "Early-Titled-Tuesday-Blitz-September-05-2023"]
[Site "Chess.com"]
[Date "2023.09.05"]
[Round "9"]
[White "gau248"]
[Black "Abund"]
[Result "0-1"]
[WhiteElo "2584"]
[BlackElo "2730"]
[TimeControl "180+1"]
[EndTime "9:42:39 PDT"]
[Termination "Abund won on time"]

1. d4 {[%clk 0:03:00.9]} 1... Nf6 {[%clk 0:02:58.4]} 2. Nf3 {[%clk 0:03:00.8]}
2... d5 {[%clk 0:02:58.2]} 3. c4 {[%clk 0:03:01]} 3... e6 {[%clk 0:02:58.7]} 4.
g3 {[%clk 0:03:00.9]} 4... dxc4 {[%clk 0:02:58.7]} 5. Bg2 {[%clk 0:02:58.7]}
5... c5 {[%clk 0:02:59.4]} 6. O-O {[%clk 0:02:50.9]} 6... Nc6 {[%clk 0:02:58.6]}
7. dxc5 {[%clk 0:02:50.3]} 7... Qxd1 {[%clk 0:02:59.5]} 8. Rxd1 {[%clk
0:02:50.2]} 8... Bxc5 {[%clk 0:03:00.2]} 9. Nbd2 {[%clk 0:02:50]} 9... c3 {[%clk
0:03:00.8]} 10. bxc3 {[%clk 0:02:50]} 10... O-O {[%clk 0:03:01.6]} 11. Nc4
{[%clk 0:02:49.6]} 11... Nd5 {[%clk 0:02:33.8]} 12. Bb2 {[%clk 0:02:43.7]} 12...
b6 {[%clk 0:02:21.2]} 13. Nfe5 {[%clk 0:02:38]} 13... Ba6 {[%clk 0:01:55.5]} 14.
e4 {[%clk 0:02:17.5]} 14... Nde7 {[%clk 0:01:32.1]} 15. Nxc6 {[%clk 0:01:57.2]}
15... Nxc6 {[%clk 0:01:31.1]} 16. e5 {[%clk 0:01:25.6]} 16... Rac8 {[%clk
0:01:10.8]} 17. Nd6 {[%clk 0:01:24.1]} 17... Rc7 {[%clk 0:01:11.2]} 18. c4
{[%clk 0:01:24.6]} 18... Na5 {[%clk 0:01:07.9]} 19. Rac1 {[%clk 0:01:15.9]}
19... Rd8 {[%clk 0:00:58.3]} 20. Bf1 {[%clk 0:00:52.6]} 20... Rcd7 {[%clk
0:00:52.5]} 21. Be2 {[%clk 0:00:39.6]} 21... h6 {[%clk 0:00:22.4]} 22. Bd4
{[%clk 0:00:17.9]} 22... Bxd6 {[%clk 0:00:19.1]} 23. exd6 {[%clk 0:00:18.2]}
23... Rxd6 {[%clk 0:00:19.7]} 24. c5 {[%clk 0:00:18.1]} 24... Bxe2 {[%clk
0:00:17.3]} 25. cxd6 {[%clk 0:00:09.8]} 25... Bxd1 {[%clk 0:00:17.7]} 26. Rxd1
{[%clk 0:00:09.5]} 26... Rxd6 {[%clk 0:00:18]} 27. Rd2 {[%clk 0:00:08.9]} 27...
Nc4 {[%clk 0:00:15.2]} 28. Rc2 {[%clk 0:00:03.4]} 28... Rxd4 {[%clk 0:00:15.3]}
29. Kg2 {[%clk 0:00:04]} 29... b5 {[%clk 0:00:15.5]} 30. h4 {[%clk 0:00:03.4]}
30... Kf8 {[%clk 0:00:15.1]} 31. h5 {[%clk 0:00:03]} 31... Ke7 {[%clk
0:00:15.6]} 32. Re2 {[%clk 0:00:02.1]} 32... Kd6 {[%clk 0:00:15.8]} 33. Kh3
{[%clk 0:00:02.1]} 33... Kd5 {[%clk 0:00:16.2]} 34. f4 {[%clk 0:00:02.2]} 34...
f6 {[%clk 0:00:15]} 35. Kg4 {[%clk 0:00:02.1]} 35... a5 {[%clk 0:00:15.2]} 36.
Re1 {[%clk 0:00:01.8]} 36... Ne5+ {[%clk 0:00:15.6]} 37. Kh3 {[%clk 0:00:01.1]}
37... Nc4 {[%clk 0:00:16.5]} 38. Kg4 {[%clk 0:00:01.2]} 38... a4 {[%clk
0:00:16.9]} 39. Rf1 {[%clk 0:00:01.3]} 39... Ne3+ {[%clk 0:00:16.8]} 0-1

[Event "Early-Titled-Tuesday-Blitz-September-05-2023"]
[Site "Chess.com"]
[Date "2023.09.05"]
[Round "9"]
[White "Doomfist26"]
[Black "Rurep26"]
[Result "0-1"]
[WhiteElo "2623"]
[BlackElo "2825"]
[TimeControl "180+1"]
[EndTime "9:42:40 PDT"]
[Termination "Rurep26 won on time"]

1. e4 {[%clk 0:03:00.9]} 1... e6 {[%clk 0:02:59.7]} 2. Nf3 {[%clk 0:02:59]} 2...
d5 {[%clk 0:02:59.6]} 3. e5 {[%clk 0:02:59.7]} 3... c5 {[%clk 0:02:52.7]} 4. b4
{[%clk 0:02:59.4]} 4... cxb4 {[%clk 0:02:51.8]} 5. a3 {[%clk 0:02:59.9]} 5...
Nc6 {[%clk 0:02:50.6]} 6. axb4 {[%clk 0:02:58.9]} 6... Bxb4 {[%clk 0:02:51.5]}
7. c3 {[%clk 0:02:59.4]} 7... Bf8 {[%clk 0:02:49.1]} 8. d4 {[%clk 0:03:00.1]}
8... Nge7 {[%clk 0:02:48.6]} 9. Bd3 {[%clk 0:02:59.4]} 9... g6 {[%clk
0:02:47.8]} 10. Na3 {[%clk 0:02:57.7]} 10... Bg7 {[%clk 0:02:47.2]} 11. h4
{[%clk 0:02:55.6]} 11... h6 {[%clk 0:02:46.9]} 12. Nb5 {[%clk 0:02:51.6]} 12...
O-O {[%clk 0:02:47.4]} 13. h5 {[%clk 0:02:45.2]} 13... Bd7 {[%clk 0:02:23.3]}
14. Nd6 {[%clk 0:02:41.4]} 14... g5 {[%clk 0:02:19.4]} 15. Bxg5 {[%clk
0:02:34.4]} 15... hxg5 {[%clk 0:02:20.3]} 16. h6 {[%clk 0:02:35]} 16... Ng6
{[%clk 0:02:18.7]} 17. hxg7 {[%clk 0:02:29.6]} 17... Kxg7 {[%clk 0:02:19.6]} 18.
Nxb7 {[%clk 0:02:10.7]} 18... Qe7 {[%clk 0:02:03.5]} 19. Nd6 {[%clk 0:02:05]}
19... Rh8 {[%clk 0:02:01.1]} 20. Rg1 {[%clk 0:01:57.9]} 20... g4 {[%clk
0:01:45.7]} 21. Nd2 {[%clk 0:01:45.5]} 21... Qg5 {[%clk 0:01:46.1]} 22. Kf1
{[%clk 0:01:11.8]} 22... Nf4 {[%clk 0:01:36.9]} 23. Ba6 {[%clk 0:01:00.5]} 23...
Raf8 {[%clk 0:01:20.9]} 24. Rb1 {[%clk 0:00:58.4]} 24... Na5 {[%clk 0:01:07.6]}
25. Ra1 {[%clk 0:00:23.1]} 25... Nc6 {[%clk 0:01:07]} 26. Rb1 {[%clk 0:00:23.4]}
26... Rb8 {[%clk 0:01:06.4]} 27. Rb7 {[%clk 0:00:21.3]} 27... Rxb7 {[%clk
0:01:05.5]} 28. Bxb7 {[%clk 0:00:20.4]} 28... Na5 {[%clk 0:01:04.3]} 29. Ba6
{[%clk 0:00:17.5]} 29... Rb8 {[%clk 0:01:04]} 30. Rh1 {[%clk 0:00:16.9]} 30...
Rb6 {[%clk 0:00:59.1]} 31. Bc8 {[%clk 0:00:13.2]} 31... Bxc8 {[%clk 0:00:52.9]}
32. Nxc8 {[%clk 0:00:12.7]} 32... Rb2 {[%clk 0:00:53.8]} 33. Nd6 {[%clk
0:00:02.4]} 33... Nd3 {[%clk 0:00:50.9]} 34. N2e4 {[%clk 0:00:02]} 34... dxe4
{[%clk 0:00:44.6]} 35. Nxe4 {[%clk 0:00:02.7]} 35... Qc1 {[%clk 0:00:37.7]} 36.
Qxc1 {[%clk 0:00:02.9]} 36... Nxc1 {[%clk 0:00:38.1]} 37. g3 {[%clk 0:00:03.7]}
37... Nd3 {[%clk 0:00:36.9]} 38. Rh4 {[%clk 0:00:02.9]} 38... Rb1+ {[%clk
0:00:34.7]} 39. Ke2 {[%clk 0:00:02.5]} 39... Nc1+ {[%clk 0:00:34.4]} 40. Kd2
{[%clk 0:00:02.7]} 40... Ncb3+ {[%clk 0:00:34.5]} 41. Kc2 {[%clk 0:00:02.9]}
41... Rc1+ {[%clk 0:00:34.3]} 42. Kb2 {[%clk 0:00:03.1]} 42... Re1 {[%clk
0:00:34.9]} 43. Rxg4+ {[%clk 0:00:03.4]} 43... Kf8 {[%clk 0:00:35.2]} 44. Nd6
{[%clk 0:00:03.4]} 44... Nd2 {[%clk 0:00:30.3]} 45. Kc2 {[%clk 0:00:02.3]} 45...
Ndc4 {[%clk 0:00:30]} 0-1

[Event "Early-Titled-Tuesday-Blitz-September-05-2023"]
[Site "Chess.com"]
[Date "2023.09.05"]
[Round "9"]
[White "hakanazeri2"]
[Black "Fengwi"]
[Result "1-0"]
[WhiteElo "2573"]
[BlackElo "2309"]
[TimeControl "180+1"]
[EndTime "9:42:44 PDT"]
[Termination "hakanazeri2 won on time"]

1. b4 {[%clk 0:02:51.1]} 1... d5 {[%clk 0:02:56]} 2. Bb2 {[%clk 0:02:49.3]} 2...
Nf6 {[%clk 0:02:56]} 3. Nf3 {[%clk 0:02:46.6]} 3... Bg4 {[%clk 0:02:55.7]} 4. e3
{[%clk 0:02:46.7]} 4... e6 {[%clk 0:02:54.8]} 5. a3 {[%clk 0:02:46.1]} 5... a5
{[%clk 0:02:54.6]} 6. b5 {[%clk 0:02:45.3]} 6... Nbd7 {[%clk 0:02:54.6]} 7. h3
{[%clk 0:02:45]} 7... Bh5 {[%clk 0:02:53.8]} 8. c4 {[%clk 0:02:44.8]} 8... Bd6
{[%clk 0:02:40.5]} 9. Be2 {[%clk 0:02:38.6]} 9... O-O {[%clk 0:02:38.2]} 10. O-O
{[%clk 0:02:26]} 10... dxc4 {[%clk 0:02:31.5]} 11. Bxc4 {[%clk 0:02:20]} 11...
e5 {[%clk 0:02:31.4]} 12. Be2 {[%clk 0:02:12.9]} 12... e4 {[%clk 0:02:11.3]} 13.
Nd4 {[%clk 0:02:11.9]} 13... Bxe2 {[%clk 0:02:08]} 14. Qxe2 {[%clk 0:02:12.8]}
14... Nc5 {[%clk 0:02:06.3]} 15. Nc3 {[%clk 0:02:08.7]} 15... Nd3 {[%clk
0:02:02.4]} 16. Bc1 {[%clk 0:02:06.3]} 16... Nxc1 {[%clk 0:01:24.9]} 17. Rfxc1
{[%clk 0:02:04.3]} 17... Be5 {[%clk 0:01:21]} 18. Qc4 {[%clk 0:01:59.1]} 18...
Qd7 {[%clk 0:01:15.9]} 19. Nce2 {[%clk 0:01:54.8]} 19... a4 {[%clk 0:01:03.5]}
20. Ra2 {[%clk 0:01:51.4]} 20... Nd5 {[%clk 0:00:43.1]} 21. Rac2 {[%clk
0:01:47.6]} 21... Nb6 {[%clk 0:00:41.1]} 22. Qc3 {[%clk 0:01:39.4]} 22... f5
{[%clk 0:00:36.9]} 23. d3 {[%clk 0:01:35.8]} 23... Rae8 {[%clk 0:00:20.5]} 24.
dxe4 {[%clk 0:01:14.3]} 24... fxe4 {[%clk 0:00:21.4]} 25. Qb4 {[%clk 0:01:12.4]}
25... Qf7 {[%clk 0:00:20.4]} 26. Nf4 {[%clk 0:01:06.1]} 26... Bxf4 {[%clk
0:00:19]} 27. exf4 {[%clk 0:01:07]} 27... Qxf4 {[%clk 0:00:19.2]} 28. Qc5 {[%clk
0:01:01]} 28... e3 {[%clk 0:00:18.8]} 29. fxe3 {[%clk 0:00:59.7]} 29... Qxe3+
{[%clk 0:00:19.2]} 30. Kh1 {[%clk 0:01:00.1]} 30... Re4 {[%clk 0:00:16]} 31. Nf3
{[%clk 0:00:57.2]} 31... Qxc5 {[%clk 0:00:15.3]} 32. Rxc5 {[%clk 0:00:56.4]}
32... Re3 {[%clk 0:00:13.2]} 33. Rxc7 {[%clk 0:00:56.5]} 33... Rxa3 {[%clk
0:00:13.7]} 34. Rxb7 {[%clk 0:00:56.8]} 34... Nd5 {[%clk 0:00:14.4]} 35. Ra7
{[%clk 0:00:54.3]} 35... Rb3 {[%clk 0:00:14.1]} 36. Rxa4 {[%clk 0:00:52.7]}
36... Rxb5 {[%clk 0:00:14.5]} 37. Ra7 {[%clk 0:00:53.2]} 37... Rfb8 {[%clk
0:00:10]} 38. Kh2 {[%clk 0:00:50.7]} 38... Rb2 {[%clk 0:00:08.4]} 39. Ne1 {[%clk
0:00:29.2]} 39... Re2 {[%clk 0:00:07.7]} 40. Rd1 {[%clk 0:00:28.3]} 40... Ne3
{[%clk 0:00:06.5]} 41. Rdd7 {[%clk 0:00:27.5]} 41... Rxe1 {[%clk 0:00:05.6]} 42.
Rxg7+ {[%clk 0:00:27.8]} 42... Kf8 {[%clk 0:00:06.3]} 43. Rxh7 {[%clk
0:00:27.1]} 43... Nf1+ {[%clk 0:00:05.1]} 44. Kg1 {[%clk 0:00:26.4]} 44... Nd2+
{[%clk 0:00:04]} 45. Kf2 {[%clk 0:00:26.2]} 45... Rf1+ {[%clk 0:00:02.3]} 46.
Ke2 {[%clk 0:00:26.2]} 46... Kg8 {[%clk 0:00:01.5]} 47. Rhg7+ {[%clk 0:00:20.4]}
1-0